bitfinex/quotes_ETHUSD_20220111
["timestamp","ask_amount","ask_price","bid_price","bid_amount"]
[1641911244092,7.255,3106.0,3105.9,0.00284211]
[1641911244292,0.80526,3105.9,3105.7,0.00397896]
[1641911244599,0.763,3105.8,3105.7,0.00397896]
[1641911245177,0.763,3105.8,3105.4,3.52185038]
[1641911245377,0.05220741,3105.6,3105.4,3.52185038]
[1641911245579,0.463,3105.5,3105.4,3.52185038]
[1641911245780,0.463,3105.5,3104.8,12.1751]
[1641911245980,0.463,3105.5,3105.4,0.00170527]
[1641911246383,0.463,3105.5,3105.2,0.89584317]
[1641911246782,0.463,3105.5,3105.2,2.09209134]
[1641911246982,0.463,3105.5,3105.2,0.89584317]
[1641911247186,1.26827,3105.5,3105.2,0.89584317]
[1641911247384,1.86827,3105.5,3105.2,0.89584317]
[1641911247586,5.792,3105.3,3105.2,0.89584317]
[1641911247785,6.855,3105.3,3105.2,0.89584317]
[1641911247989,6.75,3105.2,3104.7,2.40815754]
[1641911248183,6.75,3105.2,3104.5,3.21087672]
[1641911248184,5.792,3104.8,3104.5,3.21087672]
[1641911248395,5.792,3104.8,3104.1,0.00442413]
[1641911248396,7.40339,3104.6,3104.1,0.00442413]
[1641911248595,7.40339,3104.6,3103.7,5.48959756]
[1641911248596,5.792,3104.3,3103.9,3.8951]
[1641911248796,5.792,3104.3,3103.9,3.6951]
[1641911248797,0.463,3104.2,3103.9,3.6951]
[1641911248999,0.463,3104.2,3103.7,2.42899756]
[1641911249000,0.763,3104.2,3103.7,2.42899756]
[1641911249198,0.463,3104.2,3103.7,2.42899756]
[1641911249502,0.463,3104.2,3103.8,0.00795792]
[1641911249704,2.8690058,3105.3,3103.9,6.75]
[1641911249897,0.463,3105.3,3103.7,1.95226]
[1641911250102,5.95,3105.2,3103.7,1.89508108]
[1641911250301,0.463,3105.1,3103.9,2.73409473]
[1641911250499,0.463,3105.0,3103.9,2.73409473]
[1641911250703,6.59402643,3105.0,3104.1,1.25961646]
[1641911250902,5.792,3104.7,3104.1,1.25961646]
[1641911251100,0.463,3104.6,3104.1,2.07778641]
[1641911251302,0.46641054,3104.6,3104.1,2.07778641]
[1641911251504,0.00284212,3104.5,3104.1,2.07778641]
[1641911251701,0.463,3104.4,3104.1,2.07778641]
[1641911251902,0.463,3104.4,3104.3,6.75]
[1641911251903,0.0022737,3104.4,3104.3,6.75]
[1641911252144,0.33334219,3105.0,3104.3,6.75]
[1641911252145,0.463,3104.9,3104.3,7.5603]
[1641911252549,0.463,3104.9,3104.8,0.83549634]
[1641911252743,0.463,3104.9,3104.8,1.10801053]
[1641911252944,0.46811581,3104.9,3104.8,1.10801053]
[1641911254246,0.46811581,3104.9,3104.8,1.97213303]
[1641911254847,0.76811581,3104.9,3104.8,1.97213303]
[1641911255889,0.46811581,3104.9,3104.8,1.97213303]
[1641911256690,3.66811581,3104.9,3104.8,1.97213303]
[1641911257790,1.20863967,3104.9,3104.8,8.07213303]
[1641911257991,1.20863967,3104.9,3104.8,3.02713303]
[1641911258393,0.463,3105.6,3104.9,5.45]
[1641911258691,0.463,3105.6,3104.5,1.6102071]
[1641911258692,2.83740365,3105.5,3104.5,1.6102071]
[1641911258890,2.83740365,3105.5,3104.2,1.2379]
[1641911258891,6.255,3105.4,3104.8,1.94316589]
[1641911259093,0.8054,3105.2,3104.8,1.94316589]
[1641911259291,0.463,3105.1,3104.8,1.94316589]
[1641911259549,0.46413685,3105.1,3104.8,1.94316589]
[1641911259739,0.80545,3105.0,3104.7,1.32088753]
[1641911259939,0.80545,3105.0,3104.6,0.77766851]
[1641911259940,0.463,3104.9,3104.6,0.00170527]
[1641911260146,1.26845,3104.9,3104.6,0.00170527]
[1641911260340,1.26845,3104.9,3104.3,1.94316589]
[1641911260341,1.26845,3104.9,3104.4,0.00284211]
[1641911260541,0.463,3104.9,3104.4,0.00284211]
[1641911260940,0.463,3104.9,3104.7,0.92625083]
[1641911261141,0.463,3104.9,3104.5,1.26401712]
[1641911261541,0.463,3104.9,3104.6,0.00170527]
[1641911262341,0.463,3104.9,3104.6,0.71962531]
[1641911262748,0.463,3104.9,3104.7,0.00113684]
[1641911265197,6.25,3104.8,3104.7,0.00113684]
[1641911265401,6.25,3104.8,3104.0,3.8628]
[1641911265402,0.80564,3104.5,3104.0,3.8628]
[1641911265597,0.463,3104.4,3104.3,0.0022737]
[1641911265797,0.763,3104.4,3104.3,0.0022737]
[1641911266199,3.163,3104.4,3104.3,0.0022737]
[1641911266598,4.163,3104.4,3103.6,0.00625266]
[1641911266798,0.80569,3104.2,3103.4,1.07730569]
[1641911267057,0.463,3104.1,3103.4,1.07730569]
[1641911267246,0.46641054,3104.1,3103.4,1.07730569]
[1641911267446,0.00284211,3104.0,3103.4,1.07730569]
[1641911267647,0.463,3103.9,3103.4,1.07730569]
[1641911267846,0.46527369,3103.9,3103.4,1.07730569]
[1641911268051,0.00170527,3103.8,3103.4,1.07730569]
[1641911268247,0.463,3103.7,3103.4,1.07730569]
[1641911268546,0.463,3103.7,3103.3,3.8146]
[1641911268547,0.46413684,3103.7,3103.3,3.8146]
[1641911269345,0.46413684,3103.7,3102.8,7.5281]
[1641911269548,0.46413684,3103.7,3103.1,1.20248869]
[1641911269746,0.46413684,3103.7,3102.9,0.00341054]
[1641911270787,0.46413684,3103.7,3102.9,1.72511496]
[1641911270991,0.46413684,3103.7,3103.4,0.93808606]
[1641911271296,0.46413684,3103.7,3103.0,0.00284212]
[1641911272487,0.46413684,3103.7,3103.5,1.38200248]
[1641911273591,0.46413684,3103.7,3103.0,0.00284212]
[1641911273790,0.04930006,3103.6,3103.0,0.00284212]
[1641911273991,0.463,3103.5,3103.0,0.00284212]
[1641911274191,0.463,3103.4,3103.0,0.00284212]
[1641911274390,0.463,3103.3,3103.0,0.00284212]
[1641911275236,0.463,3103.3,3103.1,1.4829257]
[1641911275641,0.00113684,3103.7,3103.2,0.00170527]
[1641911275838,0.463,3103.6,3103.2,0.00170527]
[1641911276038,0.463,3103.6,3103.2,1.70790799]
[1641911276440,0.463,3103.6,3103.3,0.00113685]
[1641911277138,0.04282501,3103.5,3103.2,0.00170527]
[1641911277338,0.463,3103.4,3103.2,1.30504842]
[1641911277537,0.463,3103.3,3103.2,1.30504842]
[1641911277739,0.463,3103.3,3103.2,1.30334315]
[1641911279195,3.2,3103.6,3103.2,1.30334315]
[1641911279392,3.2,3103.6,3103.2,2.23004315]
[1641911279593,3.2,3103.6,3103.3,0.00113685]
[1641911279794,3.2,3103.6,3103.4,2.07464]
[1641911280095,0.463,3104.7,3103.5,6.75]
[1641911280292,0.463,3104.7,3104.4,1.40460194]
[1641911280492,0.00511581,3104.6,3104.4,1.40460194]
[1641911280695,0.00511581,3104.6,3104.4,1.35460194]
[1641911280891,0.00454739,3104.5,3104.4,1.35460194]
[1641911283139,0.00454739,3104.5,3104.4,5.40460194]
[1641911283340,0.00454739,3104.5,3104.4,1.35460194]
[1641911283738,0.00454739,3104.5,3104.4,2.71730363]
[1641911285793,0.00454739,3104.5,3104.4,1.36270169]
[1641911285794,0.46754739,3104.5,3104.4,1.36270169]
[1641911285994,0.46754739,3104.5,3103.6,3.96680336]
[1641911285995,6.45,3104.4,3103.6,3.96680336]
[1641911286192,0.463,3104.3,3103.6,3.96680336]
[1641911286395,1.54639359,3104.3,3103.6,3.86680336]
[1641911286592,1.54639359,3104.3,3103.5,0.00113685]
[1641911286593,0.8057,3104.0,3103.5,0.00113685]
[1641911286793,0.463,3103.9,3103.5,0.00113685]
[1641911286992,0.46413685,3103.9,3103.4,1.32301446]
[1641911287193,0.46413685,3103.9,3103.5,0.00113684]
[1641911287592,0.46413685,3103.9,3103.2,0.00284211]
[1641911288195,1.61145,3103.8,3103.2,0.00284211]
[1641911288396,0.463,3103.7,3103.2,0.00284211]
[1641911288599,1.063,3103.7,3103.2,0.00284211]
[1641911288795,2.063,3103.7,3103.2,0.00284211]
[1641911289195,0.8058,3103.5,3103.2,0.00284211]
[1641911289394,0.463,3103.4,3103.2,0.00284211]
[1641911289848,0.463,3103.4,3103.0,0.00397896]
[1641911290048,0.763,3103.4,3102.9,1.52368246]
[1641911290450,0.00170527,3103.3,3102.9,1.52368246]
[1641911290649,0.46470527,3103.3,3102.9,1.52368246]
[1641911290848,0.00113685,3103.2,3102.9,1.52368246]
[1641911291049,0.30113685,3103.2,3102.9,1.52368246]
[1641911291449,0.00113685,3103.2,3102.9,1.52368246]
[1641911292050,0.00113685,3103.2,3102.8,1.49796991]
[1641911292250,0.85421712,3104.1,3103.0,6.75]
[1641911292251,0.03581404,3104.1,3103.0,6.75]
[1641911292449,2.41713,3105.0,3103.0,6.75]
[1641911292450,1.0,3105.3,3104.0,0.01252137]
[1641911292649,0.463,3105.4,3104.0,0.01252137]
[1641911293052,0.463,3105.4,3103.3,20.0521]
[1641911293053,2.81400301,3105.3,3103.3,20.0521]
[1641911293295,2.81400301,3105.3,3104.3,1.12322454]
[1641911293496,1.16807029,3105.4,3103.5,2.41519322]
[1641911293497,0.47436846,3105.2,3103.5,2.41519322]
[1641911293694,3.26506612,3105.1,3103.5,2.41519322]
[1641911293895,0.47380004,3105.1,3103.5,2.41519322]
[1641911294092,0.80554,3104.6,3103.5,2.41519322]
[1641911294292,0.463,3104.6,3103.3,1.2421]
[1641911294492,0.0073895,3104.5,3104.0,1.29349445]
[1641911294693,1.0,3104.4,3103.4,4.578742]
[1641911294892,1.00682108,3104.4,3103.4,4.578742]
[1641911295092,0.00625265,3104.3,3103.4,3.7733]
[1641911295492,0.00568423,3104.2,3103.4,3.7733]
[1641911295693,0.00568423,3104.2,3103.6,1.48736322]
[1641911295893,1.80555,3104.4,3103.6,1.48736322]
[1641911295894,0.00511581,3104.1,3103.6,1.48736322]
[1641911296294,0.3,3104.3,3103.6,1.48736322]
[1641911296295,0.00454738,3104.0,3103.6,1.48736322]
[1641911296598,0.00397896,3103.9,3103.6,1.48736322]
[1641911297051,0.00341054,3103.8,3103.6,1.48736322]
[1641911297439,0.00284211,3103.7,3103.6,1.48736322]
[1641911298840,0.00284211,3103.7,3103.6,5.63736322]
[1641911299641,0.00284211,3103.7,3103.6,1.48736322]
[1641911299842,0.00284211,3103.7,3103.6,2.03442161]
[1641911300342,0.00284211,3103.7,3103.6,4.78824212]
[1641911300643,1.0,3104.4,3103.6,5.59360212]
[1641911300891,1.0,3104.4,3103.6,8.02608212]
[1641911301090,0.00341054,3104.3,3103.7,0.54705839]
[1641911301489,0.00284212,3104.2,3103.9,1.61052]
[1641911301995,0.0022737,3104.1,3103.9,2.98522181]
[1641911302389,0.00170527,3104.0,3103.9,2.98522181]
[1641911302789,0.00170527,3104.0,3103.9,1.35476795]
[1641911306151,0.00170527,3104.0,3103.9,2.98522181]
[1641911306648,0.00170527,3104.0,3103.9,2.28743743]
[1641911306850,3.20170527,3104.0,3103.9,2.23743743]
[1641911308148,3.50170527,3104.0,3103.9,2.23743743]
[1641911308601,3.20170527,3104.0,3103.9,2.23743743]
[1641911309800,3.20170527,3104.0,3103.9,3.86789129]
[1641911310006,1.0,3104.4,3104.0,6.75]
[1641911310202,1.58238458,3105.6,3104.1,6.75]
[1641911310403,1.58238458,3105.6,3104.3,0.2755]
[1641911310601,3.15131478,3105.7,3104.3,1.54432]
[1641911311001,0.00909478,3105.6,3105.5,1.26550526]
[1641911311201,0.00909478,3105.6,3105.5,2.09300526]
[1641911312269,0.00909478,3105.6,3105.5,3.02567474]
[1641911312767,0.00909478,3105.6,3105.5,13.40812256]
[1641911313066,0.00909478,3105.6,3105.5,12.02322474]
[1641911313865,0.00909478,3105.6,3105.5,6.07322474]
[1641911314066,0.00909478,3105.6,3105.5,3.46654474]
[1641911314467,0.00909478,3105.6,3105.5,2.19817474]
[1641911315071,0.00909478,3105.6,3105.5,2.96821249]
[1641911317118,0.00909478,3105.6,3105.5,2.19817474]
[1641911317417,0.00909478,3105.6,3105.5,0.93266948]
[1641911317815,0.08907783,3105.6,3105.5,0.93266948]
[1641911318416,0.08907783,3105.6,3105.2,0.93266948]
[1641911318615,0.38907783,3105.6,3105.2,0.93266948]
[1641911318815,0.00852636,3105.5,3105.2,0.93266948]
[1641911319316,0.00795793,3105.4,3105.1,1.40860071]
[1641911319744,0.00738951,3105.3,3105.1,1.40860071]
[1641911320145,0.00682108,3105.2,3105.1,1.40860071]
[1641911320743,0.00682108,3105.2,3105.1,4.28828705]
[1641911320951,0.00682108,3105.2,3105.1,1.40860071]
[1641911321143,0.00682108,3105.2,3105.1,4.18672251]
[1641911321343,0.00682108,3105.2,3105.1,1.40860071]
[1641911322145,0.00682108,3105.2,3104.7,1.2375]
[1641911322344,0.00682108,3105.2,3105.1,0.54692813]
[1641911322542,1.61058,3105.5,3105.1,0.54692813]
[1641911322543,2.21058,3105.5,3105.1,0.54692813]
[1641911322942,0.00795793,3105.4,3105.1,0.54692813]
[1641911323396,0.6,3105.5,3105.1,0.54692813]
[1641911323397,0.00738951,3105.3,3105.1,0.54692813]
[1641911323597,0.00738951,3105.3,3104.9,2.26402239]
[1641911323798,0.01277827,3105.8,3104.9,2.26402239]
[1641911323799,0.00682108,3105.2,3104.9,2.26402239]
[1641911323997,0.00682108,3105.2,3104.9,0.92232494]
[1641911324198,0.00625266,3105.1,3104.9,0.92232494]
[1641911324598,0.00568424,3105.0,3104.9,0.92232494]
[1641911325403,0.00568424,3105.0,3104.7,1.2375]
[1641911325600,0.00568424,3105.0,3104.6,3.9173]
[1641911325799,0.00511581,3104.9,3104.6,3.9173]
[1641911326199,0.00454739,3104.8,3104.6,3.9173]
[1641911326401,0.00454739,3104.8,3104.2,3.7885]
[1641911326402,0.46754739,3104.8,3104.2,3.7885]
[1641911326601,3.07161289,3104.7,3104.2,3.7885]
[1641911326802,0.30397897,3104.7,3104.2,3.7885]
[1641911327048,0.03679988,3104.5,3104.1,1.63487649]
[1641911327246,1.30341054,3104.6,3103.9,1.54715829]
[1641911327247,0.30341054,3104.6,3103.9,1.54715829]
[1641911327451,0.0022737,3104.4,3103.9,1.54715829]
[1641911327647,1.0,3104.4,3103.9,1.54715829]
[1641911327853,0.00170527,3104.3,3103.8,3.9834]
[1641911328055,0.03895816,3104.2,3103.8,3.9834]
[1641911328250,0.00113685,3104.2,3103.8,3.9834]
[1641911328750,0.00113685,3104.2,3103.4,3.48346116]
[1641911328751,0.463,3104.1,3103.4,3.48346116]
[1641911328949,0.463,3104.1,3103.2,2.41519322]
[1641911328950,1.75091884,3104.1,3103.2,1.63487649]
[1641911329250,4.06540021,3104.0,3103.5,0.00284211]
[1641911329449,6.7623813,3103.6,3103.2,1.63487649]
[1641911329750,6.5980433,3103.5,3103.3,0.00113685]
[1641911329949,0.3,3103.4,3103.3,0.00113685]
[1641911330149,0.763,3103.4,3103.3,0.00113685]
[1641911330349,0.763,3103.4,3100.9,7.51037844]
[1641911330350,6.75,3103.2,3100.9,7.51037844]
[1641911330554,0.0122164,3101.7,3100.9,5.45963952]
[1641911330807,5.792,3101.8,3100.9,5.45963952]
[1641911330808,0.01202997,3101.1,3101.0,1.5e-05]
[1641911330999,6.26702997,3101.1,3101.0,5.43569037]
[1641911331199,6.26702997,3101.1,3100.7,4.79073998]
[1641911331200,6.75,3101.0,3100.7,4.79073998]
[1641911331398,0.01267139,3100.8,3100.1,6.50248827]
[1641911331602,5.792,3100.2,3100.1,6.50248827]
[1641911331799,6.26783133,3100.2,3098.5,3.7864]
[1641911331998,1.063,3100.2,3100.1,0.00682108]
[1641911332197,6.93498305,3100.2,3100.1,0.00682108]
[1641911332401,6.93498305,3100.2,3096.9,3.14365719]
[1641911332402,6.75,3100.1,3096.9,3.14365719]
[1641911332601,0.04988163,3100.0,3096.9,3.14365719]
[1641911332806,0.04988163,3100.0,3096.3,0.10120147]
[1641911332807,0.04988163,3100.0,3096.3,2.73264462]
[1641911332808,0.72660214,3097.0,3096.3,2.73264462]
[1641911333004,6.81804986,3098.5,3096.1,8.17131538]
[1641911333005,5.792,3096.4,3096.1,8.17131538]
[1641911333203,5.792,3096.4,3096.0,0.47375303]
[1641911333204,0.79976367,3096.3,3096.0,0.47375303]
[1641911333404,0.713,3096.3,3096.0,0.17375303]
[1641911333604,6.5,3096.2,3096.1,0.02273694]
[1641911333804,15.57366424,3096.2,3096.1,3.694e-05]
[1641911334001,15.57366424,3096.2,3094.1,3.9088]
[1641911334002,0.83620726,3095.8,3094.1,3.9088]
[1641911334203,1.62821518,3095.5,3094.3,0.01023162]
[1641911334403,0.16835,3094.2,3093.2,0.01290523]
[1641911334643,0.16835,3094.2,3092.8,3.20949822]
[1641911334851,0.16835,3094.2,3092.8,3.17549822]
[1641911335046,0.16835,3094.2,3092.8,1.59359822]
[1641911335250,0.16835,3094.2,3094.0,0.00170527]
[1641911335251,6.75,3094.1,3094.0,0.00170527]
[1641911335449,10.34422557,3094.1,3092.1,0.03548122]
[1641911335648,0.9441379,3093.9,3091.1,0.91269477]
[1641911336050,0.0121035,3092.9,3091.1,0.91269477]
[1641911336752,5.8041035,3092.9,3091.1,0.91269477]
[1641911336950,0.01297347,3092.7,3091.1,0.91269477]
[1641911337548,0.0125113,3092.6,3091.1,0.91269477]
[1641911337849,0.0125113,3092.6,3090.9,3.756]
[1641911338499,0.07998305,3091.1,3090.9,3.756]
[1641911339099,0.0125845,3092.4,3091.4,1.47824234]
[1641911339100,0.01241643,3092.3,3091.4,1.47824234]
[1641911339302,0.01241643,3092.3,3088.7,5.63510319]
[1641911339303,0.33080009,3091.2,3088.7,5.63510319]
[1641911339501,1.0,3091.1,3088.3,0.91096723]
[1641911339703,1.61857,3092.1,3088.3,0.91096723]
[1641911339704,0.1,3093.9,3091.0,0.66090793]
[1641911339901,0.1,3093.9,3092.0,0.01576013]
[1641911340102,0.01288801,3093.4,3092.6,1.0]
[1641911340301,0.01288801,3093.4,3092.7,3.28166424]
[1641911340499,0.1,3093.9,3092.7,1.17298951]
[1641911340500,0.02563165,3093.9,3092.7,1.17298951]
[1641911340701,0.16835,3094.2,3092.8,0.84645841]
[1641911340900,0.16835,3094.2,3093.0,2.06412096]
[1641911340901,9.94330306,3094.2,3093.0,2.06412096]
[1641911341101,3.14590304,3095.7,3093.6,6.75]
[1641911341303,2.43804003,3096.0,3093.8,0.01271338]
[1641911341502,3.14579309,3097.0,3093.7,3.28166424]
[1641911341503,0.0073895,3095.3,3093.9,0.45127823]
[1641911341699,0.0073895,3095.3,3093.7,2.82036951]
[1641911341700,0.0073895,3095.3,3093.8,0.463]
[1641911341900,0.00682108,3095.2,3094.0,1.27808653]
[1641911342168,0.00682108,3095.2,3094.1,1.73579]
[1641911342367,0.13819997,3095.8,3094.1,1.73579]
[1641911342368,0.00625266,3095.1,3094.1,1.73579]
[1641911342566,0.01827617,3095.1,3094.1,1.73579]
[1641911342769,0.00568423,3095.0,3094.1,1.73579]
[1641911343067,0.00511581,3094.9,3094.1,1.73579]
[1641911343268,0.00511581,3094.9,3094.1,1.27279]
[1641911343466,0.00454738,3094.8,3094.2,0.93861233]
[1641911343870,0.13819997,3095.7,3094.2,0.93861233]
[1641911343871,0.00397896,3094.7,3094.2,0.93861233]
[1641911344267,0.00341054,3094.6,3094.2,0.93861233]
[1641911344666,0.01202073,3096.1,3094.2,0.93861233]
[1641911344667,0.00284211,3094.5,3094.3,1.63781554]
[1641911344867,0.08752402,3095.3,3094.4,2.81866424]
[1641911345069,3.14579309,3097.0,3096.2,1.30626752]
[1641911345269,3.14579309,3097.0,3094.8,0.01238143]
[1641911345270,0.00397897,3095.2,3094.8,2.83104567]
[1641911345468,7.897e-05,3095.2,3094.9,0.463]
[1641911345669,3.15767568,3097.2,3094.9,1.7370963]
[1641911345670,0.00341055,3095.1,3094.9,1.7370963]
[1641911345900,0.00341055,3095.1,3095.0,0.00105788]
[1641911346097,3.15767568,3097.2,3095.0,0.46405788]
[1641911346098,0.01210082,3096.5,3095.0,0.46405788]
[1641911346298,2.79946062,3097.1,3095.0,0.00105788]
[1641911346299,0.01267965,3095.8,3095.0,0.00105788]
[1641911346503,0.01267965,3095.8,3095.1,0.66298183]
[1641911346698,0.00292109,3095.7,3095.4,1.26201224]
[1641911347099,0.00235266,3095.6,3095.4,1.26201224]
[1641911347498,0.00178424,3095.5,3095.2,0.463]
[1641911347700,0.00178424,3095.5,3095.1,0.66298183]
[1641911347900,0.00121582,3095.4,3095.1,0.66298183]
[1641911348298,0.01284724,3095.9,3095.1,0.66298183]
[1641911348800,0.46648951,3095.8,3095.0,0.00105788]
[1641911349003,0.0129981,3095.2,3095.0,0.00105788]
[1641911349199,0.0129981,3095.2,3093.5,0.00958423]
[1641911349200,0.4759981,3095.2,3093.5,0.00958423]
[1641911349399,0.4759981,3095.2,3093.0,0.01264519]
[1641911349400,3.92247712,3095.1,3093.3,0.01072108]
[1641911349652,1.0,3094.8,3094.0,0.73305557]
[1641911349852,1.6,3094.8,3094.0,0.55425957]
[1641911350054,1.3,3094.8,3094.1,0.00617369]
[1641911350252,1.6,3094.8,3094.1,0.00617369]
[1641911350451,0.4759981,3095.2,3094.5,1.11675024]
[1641911350652,0.00292109,3095.7,3094.6,3.17773329]
[1641911350850,0.00292109,3095.7,3094.6,0.00333157]
[1641911351051,0.01252512,3096.1,3094.7,0.00276315]
[1641911351052,0.00235266,3095.6,3094.7,0.00276315]
[1641911351251,0.00235266,3095.6,3094.6,0.00333157]
[1641911351451,0.00178424,3095.5,3094.6,0.00333157]
[1641911351851,1.0,3095.2,3094.6,0.00333157]
[1641911352053,0.05734364,3095.1,3094.6,0.00333157]
[1641911352254,1.3,3095.2,3094.5,0.0039]
[1641911352255,1.0,3095.2,3094.5,0.0039]
[1641911352461,1.0,3095.2,3093.4,0.01015265]
[1641911352654,0.01284658,3095.4,3093.4,0.01015265]
[1641911352852,0.00462636,3096.0,3094.9,1.47614165]
[1641911353053,0.00462636,3096.0,3095.4,1.11203788]
[1641911353295,0.00405793,3095.9,3095.4,0.88171384]
[1641911353496,0.00405793,3095.9,3095.0,0.00105788]
[1641911353497,0.46705793,3095.9,3095.0,0.00105788]
[1641911353697,0.00348951,3095.8,3095.0,0.00105788]
[1641911353896,0.00348951,3095.8,3094.2,0.00560527]
[1641911354097,0.01277116,3095.4,3093.6,0.00901581]
[1641911354302,0.51731471,3095.3,3093.6,0.00901581]
[1641911354598,0.04669989,3095.1,3093.8,0.68000522]
[1641911354797,0.463,3095.0,3093.8,0.68000522]
[1641911354998,0.463,3095.0,3093.9,0.00731054]
[1641911355399,0.463,3095.0,3094.1,1.48533735]
[1641911355600,1.0,3095.3,3094.6,1.15940544]
[1641911355800,0.463,3095.4,3095.1,1.41743456]
[1641911356000,0.463,3095.4,3094.7,0.76076645]
[1641911356001,0.00292109,3095.7,3095.6,1.24370741]
[1641911356400,0.00292109,3095.7,3094.7,0.7635296]
[1641911356804,0.00235266,3095.6,3094.8,0.00219473]
[1641911357077,0.463,3096.1,3094.2,0.0127265]
[1641911357078,3.22414256,3094.6,3094.2,0.0127265]
[1641911357265,3.22414256,3094.6,3093.7,0.463]
[1641911357266,0.04752529,3095.3,3094.3,1.22842885]
[1641911357467,0.03941761,3095.3,3094.3,0.00284211]
[1641911357667,0.00763951,3095.2,3094.3,0.00284211]
[1641911357868,0.463,3095.1,3093.5,0.0073895]
[1641911358067,0.46470528,3095.1,3092.9,0.01250699]
[1641911358268,3.3165651,3095.0,3094.2,0.78530011]
[1641911358467,0.47152635,3095.0,3094.4,1.53802172]
[1641911358667,2.55,3094.8,3092.7,1.16078805]
[1641911358869,0.00686824,3094.8,3094.0,1.44534057]
[1641911359067,0.463,3095.0,3092.8,0.01390137]
[1641911359068,0.0096632,3094.7,3092.8,0.01390137]
[1641911359268,0.0096632,3094.7,3094.6,0.74576223]
[1641911359471,0.00909478,3094.6,3092.9,0.84664428]
[1641911359667,0.463,3095.0,3092.9,0.84664428]
[1641911359668,0.0096632,3094.7,3092.9,0.84664428]
[1641911359868,0.463,3095.0,3092.8,0.01390137]
[1641911359869,0.00852635,3094.5,3092.8,0.01390137]
[1641911360067,3.4261808,3094.9,3093.0,0.3]
[1641911360068,0.00909478,3094.6,3093.0,0.3]
[1641911360269,0.00909477,3094.4,3094.1,1.49808793]
[1641911360570,0.463,3095.0,3094.1,1.49808793]
[1641911360571,0.00852635,3094.3,3094.1,1.49808793]
[1641911360805,0.00852635,3094.3,3094.1,0.00238383]
[1641911361007,0.00795792,3094.2,3094.1,0.00238383]
[1641911361205,0.00795792,3094.2,3094.1,1.11231876]
[1641911362110,0.00795792,3094.2,3093.0,1.0]
[1641911362307,0.00795792,3094.2,3093.1,0.463]
[1641911362508,0.0073895,3094.1,3093.1,1.7195]
[1641911362707,0.0073895,3094.1,3093.3,1.6155625]
[1641911363009,0.00736027,3095.4,3094.9,1.46596539]
[1641911363206,0.00736027,3095.4,3095.0,1.07576246]
[1641911363408,0.00568424,3095.1,3095.0,1.07576246]
[1641911363807,0.00795793,3095.5,3095.4,1.2432397]
[1641911364010,0.00795793,3095.5,3095.0,1.07576246]
[1641911364407,0.00738951,3095.4,3095.0,1.07576246]
[1641911364652,0.00738951,3095.4,3094.1,0.463]
[1641911364851,0.00682108,3095.3,3093.6,0.463]
[1641911365048,0.00682108,3095.3,3094.2,1.52948533]
[1641911365248,0.00625266,3095.2,3094.7,1.5255724]
[1641911365649,0.00795793,3095.5,3094.7,1.34681541]
[1641911365950,0.00795793,3095.5,3093.2,0.49504674]
[1641911365951,4.20738951,3095.4,3093.0,15.76324682]
[1641911366150,4.20738951,3095.4,3092.5,1.0]
[1641911366151,0.04523501,3095.3,3093.1,0.463]
[1641911366349,0.00909477,3095.3,3093.2,0.463]
[1641911366550,0.00852635,3095.2,3093.2,1.763]
[1641911366751,0.00852635,3095.2,3093.3,0.0022737]
[1641911366955,0.00795793,3095.1,3094.2,1.3269807]
[1641911367254,0.463,3095.6,3094.2,1.3269807]
[1641911367255,0.0073895,3095.0,3094.2,1.3269807]
[1641911367650,0.00682108,3094.9,3094.8,0.96834971]
[1641911367852,0.00682108,3094.9,3094.2,1.3269807]
[1641911368054,0.00682108,3094.9,3093.3,0.0022737]
[1641911368055,1.03870004,3094.9,3093.3,0.0022737]
[1641911368309,4.39996987,3094.8,3093.3,0.0022737]
[1641911368507,4.61580878,3094.8,3093.0,0.00397897]
[1641911368711,0.00568423,3094.7,3092.7,0.00568424]
[1641911368907,0.463,3094.6,3093.6,1.0960557]
[1641911369110,0.46811581,3094.6,3093.6,1.0960557]
[1641911369307,0.00454738,3094.5,3093.7,1.28036389]
[1641911369708,0.00397896,3094.4,3093.6,1.0960557]
[1641911369911,0.00397896,3094.4,3094.1,0.85745351]
[1641911370109,0.00341054,3094.3,3092.7,0.00568424]
[1641911370311,0.0381001,3094.1,3091.9,3.61923]
[1641911370510,5.25852635,3094.2,3091.9,5.23527]
[1641911370712,0.00738951,3094.0,3093.3,1.31298376]
[1641911370912,0.00795793,3094.1,3093.3,1.31298376]
[1641911371115,0.00682108,3093.9,3093.4,1.01433631]
[1641911371313,0.00738951,3094.0,3093.4,1.01433631]
[1641911371513,0.00625266,3093.8,3093.5,0.95341275]
[1641911371715,1.43978598,3094.4,3093.6,1.40021671]
[1641911371716,0.00682108,3093.9,3093.6,1.40021671]
[1641911371934,0.00568424,3093.7,3093.6,1.40021671]
[1641911372151,0.00625266,3093.8,3093.2,1.06293275]
[1641911372353,0.00568424,3093.7,3093.2,1.06293275]
[1641911372554,0.00568424,3093.7,3093.6,1.24703626]
[1641911372753,0.9624,3093.9,3093.6,2.34256037]
[1641911372955,0.9624,3093.9,3092.2,2.42648342]
[1641911373153,0.00625266,3093.8,3092.3,1.60534691]
[1641911373351,0.9624,3093.6,3092.3,1.6076206]
[1641911373561,0.9624,3093.6,3092.4,0.00170527]
[1641911373752,0.9624,3092.5,3092.4,0.00170527]
[1641911373953,0.9624,3092.5,3092.4,2.26307288]
[1641911374551,0.9624,3092.5,3092.4,0.00170527]
[1641911374955,3.70600046,3092.5,3092.1,0.81170054]
[1641911375158,1.43978598,3092.8,3092.2,6.75]
[1641911375356,8.598e-05,3092.8,3092.1,0.00341054]
[1641911375555,8.598e-05,3092.8,3092.3,0.00227369]
[1641911375800,8.598e-05,3092.8,3092.1,0.00341054]
[1641911376000,8.598e-05,3092.8,3092.1,0.81162054]
[1641911376203,8.598e-05,3092.8,3092.1,0.8082099]
[1641911376399,0.00341054,3092.7,3092.1,0.8083]
[1641911376908,2.15967897,3092.3,3092.2,3.73686101]
[1641911377102,2.88241408,3092.6,3092.2,1.18686101]
[1641911377300,3.59946495,3093.0,3092.2,1.18686101]
[1641911377501,3.01584709,3092.8,3092.4,2.60401091]
[1641911377703,3.01584709,3092.8,3092.7,1.10418853]
[1641911377904,3.01584709,3092.8,3092.7,5.85418853]
[1641911378202,3.59946495,3093.3,3093.0,0.80798]
[1641911378601,4.80269714,3093.2,3093.0,1.6159578]
[1641911378803,4.80269714,3093.2,3092.4,0.98794091]
[1641911379103,0.00284212,3093.1,3092.4,0.98794091]